bitfinex/quotes_BTCUSD_20250908
["timestamp","ask_amount","ask_price","bid_price","bid_amount"]
[1757293203430,0.69483388,110890.0,110880.0,0.00013951]
[1757293203604,0.54315388,110890.0,110880.0,0.00210951]
[1757293203829,0.69483388,110890.0,110880.0,0.00013951]
[1757293204040,0.69786388,110890.0,110880.0,0.00013951]
[1757293204238,0.88761378,110890.0,110880.0,0.00013951]
[1757293204620,0.9085526,110890.0,110880.0,0.00013951]
[1757293204829,1.29682213,110890.0,110880.0,0.00013951]
[1757293206226,1.29682213,110890.0,110880.0,1e-08]
[1757293207093,1.27427164,110890.0,110880.0,1e-08]
[1757293207318,1.30191164,110890.0,110880.0,1e-08]
[1757293209179,1.12259164,110890.0,110880.0,1e-08]
[1757293209367,1.08452174,110890.0,110880.0,1e-08]
[1757293209603,1.27427164,110890.0,110880.0,1e-08]
[1757293210095,1.12259164,110890.0,110880.0,1e-08]
[1757293210299,0.74309184,110890.0,110880.0,1e-08]
[1757293210498,0.54969184,110890.0,110880.0,0.00503001]
[1757293210752,0.54969184,110890.0,110880.0,0.00197001]
[1757293210753,1.08169524,110890.0,110880.0,0.00197001]
[1757293210935,1.08169524,110890.0,110880.0,1e-08]
[1757293211253,1.08472524,110890.0,110880.0,1e-08]
[1757293211541,1.08472524,110890.0,110850.0,0.22606508]
[1757293211542,0.18040772,110860.0,110850.0,0.22606508]
[1757293211750,0.33208772,110860.0,110850.0,0.22808178]
[1757293212096,0.33208772,110860.0,110850.0,0.21855237]
[1757293213307,0.33208772,110860.0,110850.0,0.22161237]
[1757293213524,0.18040607,110870.0,110850.0,0.41156577]
[1757293213755,0.18040607,110870.0,110860.0,0.00306]
[1757293213969,0.33208607,110870.0,110860.0,0.00503]
[1757293216269,0.33208607,110870.0,110860.0,0.00197]
[1757293216270,0.52408947,110870.0,110860.0,0.00197]
[1757293216523,0.18040772,110860.0,110850.0,0.0031067]
[1757293216938,0.18040772,110860.0,110850.0,0.0050767]
[1757293220537,0.33208772,110860.0,110850.0,0.0050767]
[1757293223977,0.52044027,110840.0,110830.0,0.37038066]
[1757293224203,0.33212027,110840.0,110830.0,0.46365665]
[1757293224432,0.67212027,110840.0,110830.0,0.09327599]
[1757293224647,0.86744367,110840.0,110830.0,0.02845252]
[1757293225060,0.86744367,110840.0,110830.0,0.00136]
[1757293225972,0.67749027,110840.0,110830.0,0.00136]
[1757293226114,0.68632379,110840.0,110830.0,0.00136]
[1757293226320,0.67749027,110840.0,110830.0,0.00136]
[1757293226520,0.67536027,110840.0,110830.0,0.00136]
[1757293226933,0.67212027,110840.0,110830.0,0.00136]
[1757293228489,0.67536027,110840.0,110830.0,0.00136]
[1757293228911,0.67749027,110840.0,110830.0,0.00136]
[1757293229826,0.67536027,110840.0,110830.0,0.00136]
[1757293230239,0.86744367,110840.0,110830.0,0.00136]
[1757293230388,0.86744367,110840.0,110810.0,0.02794686]
[1757293230766,0.18047283,110820.0,110810.0,0.09276599]
[1757293230986,0.33215283,110820.0,110810.0,0.09276599]
[1757293231202,0.33215283,110820.0,110810.0,0.09412599]
[1757293231813,0.18048912,110810.0,110800.0,0.33424516]
[1757293232019,0.18048912,110810.0,110800.0,0.42662582]
[1757293232445,0.18048912,110810.0,110800.0,0.23667242]
[1757293232647,0.33215283,110820.0,110800.0,0.23667242]
[1757293232843,0.33215283,110820.0,110810.0,0.18048912]
[1757293234881,0.33215283,110820.0,110800.0,0.43565109]
[1757293235056,0.33215283,110820.0,110810.0,0.18048912]
[1757293236614,0.33215283,110820.0,110800.0,0.43565109]
[1757293237324,0.33215283,110820.0,110810.0,0.18048912]
[1757293238057,0.33215283,110820.0,110800.0,0.43565109]
[1757293238523,0.18048912,110810.0,110800.0,0.43565109]
[1757293238725,0.33215283,110820.0,110800.0,0.24569769]
[1757293238931,0.33215283,110820.0,110800.0,0.43565109]
[1757293239159,0.33215283,110820.0,110800.0,0.24569769]
[1757293239425,0.33215283,110820.0,110800.0,0.43565109]
[1757293240030,0.33215283,110820.0,110810.0,0.18048912]
[1757293240569,0.33215283,110820.0,110800.0,0.43565109]
[1757293241222,0.33215283,110820.0,110810.0,0.18048912]
[1757293241354,0.33215283,110820.0,110800.0,0.43565109]
[1757293241562,0.18047283,110820.0,110810.0,0.18048912]
[1757293241767,0.33215283,110820.0,110810.0,0.18048912]
[1757293242408,0.18047283,110820.0,110810.0,0.37044252]
[1757293242611,0.33215283,110820.0,110810.0,0.37044252]
[1757293242815,0.33215283,110820.0,110810.0,0.2075884]
[1757293246455,0.33215283,110820.0,110810.0,0.02709928]
[1757293246607,0.33215283,110820.0,110810.0,0.2075884]
[1757293246840,0.33215283,110820.0,110810.0,0.02709928]
[1757293247654,0.33215283,110820.0,110810.0,0.2075884]
[1757293248078,0.33215283,110820.0,110810.0,0.02709928]
[1757293250076,0.18047283,110820.0,110810.0,0.02709928]
[1757293250241,0.33215283,110820.0,110810.0,0.02709928]
[1757293250863,0.18048912,110810.0,110800.0,0.56023181]
[1757293251088,0.18048912,110810.0,110800.0,0.58733109]
[1757293252095,0.18048912,110810.0,110800.0,0.39737769]
[1757293252294,0.18048912,110810.0,110800.0,0.58733109]
[1757293254901,0.18048912,110810.0,110800.0,0.11947994]
[1757293255090,0.18048912,110810.0,110800.0,0.27115994]
[1757293255291,0.37044252,110810.0,110800.0,0.02756395]
[1757293255607,0.37559252,110810.0,110800.0,0.00046467]
[1757293256168,0.18563912,110810.0,110800.0,0.00046467]
[1757293256391,0.71559252,110810.0,110800.0,0.00046467]
[1757293257617,0.86727252,110810.0,110800.0,0.00046467]
[1757293257983,0.52563912,110810.0,110800.0,0.00046467]
[1757293258207,0.86513252,110810.0,110800.0,0.00046467]
[1757293258406,0.86727252,110810.0,110800.0,0.00046467]
[1757293259209,0.67731912,110810.0,110800.0,0.00046467]
[1757293259414,0.86513252,110810.0,110800.0,0.00046467]
[1757293259620,0.86727252,110810.0,110800.0,0.00046467]
[1757293260453,0.52727252,110810.0,110800.0,0.00046467]
[1757293261968,0.37559252,110810.0,110800.0,0.00046467]
[1757293262184,0.52727252,110810.0,110800.0,0.00046467]
[1757293263221,0.37559252,110810.0,110800.0,0.00046467]
[1757293263510,0.52727252,110810.0,110800.0,0.00046467]
[1757293263921,0.37345252,110810.0,110800.0,0.00046467]
[1757293264120,0.52513252,110810.0,110800.0,0.00046467]
[1757293264877,0.52727252,110810.0,110800.0,0.00046467]
[1757293267994,0.37559252,110810.0,110800.0,0.00046467]
[1757293268210,0.52727252,110810.0,110800.0,0.00046467]
[1757293270267,0.37559252,110810.0,110800.0,0.00046467]
[1757293270485,0.52727252,110810.0,110800.0,0.00046467]
[1757293270753,0.33731912,110810.0,110800.0,0.00046467]
[1757293270942,0.18048912,110810.0,110800.0,0.00046467]
[1757293271165,0.33216912,110810.0,110800.0,0.00046467]
[1757293271630,0.18048912,110810.0,110800.0,0.00046467]
[1757293271855,0.67216912,110810.0,110800.0,0.00046467]
[1757293272526,0.86231555,110810.0,110800.0,0.00046467]
[1757293272957,0.86532555,110810.0,110800.0,0.00046467]
[1757293274905,0.86227555,110810.0,110800.0,0.00046467]
[1757293276689,0.71063555,110810.0,110800.0,0.00046467]
[1757293276916,0.67212912,110810.0,110800.0,0.37337282]
[1757293277184,0.67212912,110810.0,110800.0,0.37111651]
[1757293277388,0.67212912,110810.0,110800.0,0.18097008]
[1757293277796,0.67212912,110810.0,110800.0,0.37111651]
[1757293278206,0.67212912,110810.0,110800.0,0.1906111]
[1757293278433,0.67212912,110810.0,110800.0,0.00046467]
[1757293278635,0.86528555,110810.0,110800.0,0.00046467]
[1757293283632,0.67513912,110810.0,110800.0,0.00046467]
[1757293287021,0.67718912,110810.0,110800.0,0.00046467]
[1757293287817,0.86733555,110810.0,110800.0,0.00046467]
[1757293288029,0.67513912,110810.0,110800.0,0.00046467]
[1757293288231,0.86733555,110810.0,110800.0,0.00046467]
[1757293288617,0.86528555,110810.0,110800.0,0.00046467]
[1757293290445,0.67513912,110810.0,110800.0,0.00046467]
[1757293290636,0.86528555,110810.0,110800.0,0.00046467]
[1757293291637,0.67513912,110810.0,110800.0,0.00046467]
[1757293292196,0.52048912,110810.0,110800.0,0.37337282]
[1757293292452,0.67212912,110810.0,110800.0,0.1906111]
[1757293292865,0.52048912,110810.0,110800.0,0.37111651]
[1757293293075,0.67212912,110810.0,110800.0,0.37111651]
[1757293294795,0.67212912,110810.0,110800.0,0.18097008]
[1757293294930,0.67212912,110810.0,110800.0,0.1906111]
[1757293295366,0.86750555,110810.0,110800.0,0.00046467]
[1757293295991,0.52571912,110810.0,110800.0,0.00046467]
[1757293296212,0.67530912,110810.0,110800.0,0.00046467]
[1757293299790,0.67735912,110810.0,110800.0,0.00046467]
[1757293300870,0.86750555,110810.0,110800.0,0.00046467]
[1757293301069,0.86545555,110810.0,110800.0,0.00046467]
[1757293301301,0.64025572,110810.0,110800.0,0.00046467]
[1757293301496,0.52545555,110810.0,110800.0,0.00046467]
[1757293302301,0.33530912,110810.0,110800.0,0.00046467]
[1757293302503,0.52545555,110810.0,110800.0,0.00046467]
[1757293303733,0.47459056,110810.0,110800.0,0.00262467]
[1757293303939,0.28444413,110810.0,110800.0,0.00262467]
[1757293304264,0.47459056,110810.0,110800.0,0.00262467]
[1757293306583,0.47982056,110810.0,110800.0,0.00262467]
[1757293306740,0.47982056,110810.0,110800.0,0.00046467]
[1757293307773,0.47982056,110810.0,110800.0,0.00262467]
[1757293308159,0.28967413,110810.0,110800.0,0.00262467]
[1757293308369,0.47982056,110810.0,110800.0,0.00262467]
[1757293309808,0.47982056,110810.0,110800.0,0.00046467]
[1757293316347,0.28967413,110810.0,110800.0,0.00046467]
[1757293316830,0.47982056,110810.0,110800.0,0.00046467]
[1757293318266,0.47982056,110810.0,110800.0,0.00254467]
[1757293318463,0.28967413,110810.0,110800.0,0.00254467]
[1757293318671,0.47982056,110810.0,110800.0,0.00254467]
[1757293320300,0.13807413,110810.0,110800.0,0.00254467]
[1757293320494,0.47982056,110810.0,110800.0,0.00254467]
[1757293322512,0.28967413,110810.0,110800.0,0.00254467]
[1757293322692,0.47982056,110810.0,110800.0,0.00254467]
[1757293323703,0.47982056,110810.0,110800.0,0.00046467]
[1757293326088,0.28967413,110810.0,110800.0,0.00046467]
[1757293326290,0.47982056,110810.0,110800.0,0.00046467]
[1757293326717,0.32822056,110810.0,110800.0,0.00046467]
[1757293326931,0.28963413,110810.0,110800.0,0.00046467]
[1757293327265,0.47978056,110810.0,110800.0,0.00046467]
[1757293327469,0.28963413,110810.0,110800.0,0.00046467]
[1757293327790,0.47978056,110810.0,110800.0,0.00046467]
[1757293328233,0.28963413,110810.0,110800.0,0.00046467]
[1757293328464,0.13807413,110810.0,110800.0,0.00254467]
[1757293328688,0.47978056,110810.0,110800.0,0.00254467]
[1757293328914,0.32822056,110810.0,110800.0,0.00046467]
[1757293329154,0.47978056,110810.0,110800.0,0.00046467]
[1757293329387,0.47978056,110810.0,110800.0,0.00254467]
[1757293329842,0.32822056,110810.0,110800.0,0.00254467]
[1757293330073,0.13284413,110810.0,110800.0,0.37545282]
[1757293330269,0.13284413,110810.0,110800.0,0.37501651]
[1757293330540,0.13284413,110810.0,110800.0,0.37319651]
[1757293330772,0.33204912,110810.0,110800.0,0.37501651]
[1757293331008,0.33204912,110810.0,110800.0,0.37319651]
[1757293332149,0.33509912,110810.0,110800.0,0.00254467]
[1757293332378,0.34309912,110810.0,110800.0,0.00454467]
[1757293332840,0.53533555,110810.0,110800.0,0.00246467]
[1757293334430,0.34518912,110810.0,110800.0,0.00246467]
[1757293335440,0.34518912,110810.0,110800.0,0.00454467]
[1757293335690,0.34309912,110810.0,110800.0,0.00454467]
[1757293336101,0.34004912,110810.0,110800.0,0.00454467]
[1757293336521,0.34309912,110810.0,110800.0,0.00454467]
[1757293339603,0.34004912,110810.0,110800.0,0.00454467]
[1757293339835,0.34309912,110810.0,110800.0,0.00454467]
[1757293340258,0.34004912,110810.0,110800.0,0.00454467]
[1757293340900,0.18848912,110810.0,110800.0,0.18505008]
[1757293341120,0.008,110810.0,110800.0,0.62050604]
[1757293341556,0.008,110810.0,110800.0,0.64760535]
[1757293341778,0.008,110810.0,110800.0,0.71692535]
[1757293342828,0.008,110810.0,110800.0,0.56536535]
[1757293343102,0.008,110810.0,110800.0,0.71692535]
[1757293343342,0.008,110810.0,110800.0,0.56536535]
[1757293343593,0.008,110810.0,110800.0,0.71692535]
[1757293345446,0.008,110810.0,110800.0,0.52676538]
[1757293345645,0.008,110810.0,110800.0,0.71692535]
[1757293345790,0.18848912,110810.0,110800.0,0.71692535]
[1757293346023,0.18848912,110810.0,110800.0,0.00454467]
[1757293346227,0.53544909,110810.0,110800.0,0.00246467]
[1757293346665,0.34528912,110810.0,110800.0,0.00246467]
[1757293347816,0.34004912,110810.0,110800.0,0.00456467]
[1757293348814,0.18848912,110810.0,110800.0,0.00456467]
[1757293349106,0.34004912,110810.0,110800.0,0.00456467]
[1757293350122,0.34004912,110810.0,110800.0,0.00638467]
[1757293350532,0.34004912,110810.0,110800.0,0.18914639]
[1757293350758,0.34004912,110810.0,110800.0,0.18689008]
[1757293351243,0.18848912,110810.0,110800.0,0.18689008]
[1757293351459,0.18848912,110810.0,110800.0,0.62052604]
[1757293352080,0.13748912,110810.0,110800.0,0.62052604]
[1757293352218,0.13960912,110810.0,110800.0,0.00246467]
[1757293352445,0.37588909,110810.0,110800.0,0.00246467]
[1757293352884,0.18572912,110810.0,110800.0,0.00246467]
[1757293355885,0.37588909,110810.0,110800.0,0.00246467]
[1757293356770,0.18260912,110810.0,110800.0,0.00750467]
[1757293358653,0.33204912,110810.0,110800.0,0.00750467]
[1757293360616,0.33416912,110810.0,110800.0,0.00750467]
[1757293361304,0.33204912,110810.0,110800.0,0.00750467]
[1757293363007,0.33204912,110810.0,110800.0,0.00976098]
[1757293363443,0.33204912,110810.0,110800.0,0.00750467]
[1757293364016,0.33416912,110810.0,110800.0,0.00750467]
[1757293367333,0.18050541,110800.0,110780.0,0.42972092]
[1757293367539,0.18050541,110800.0,110790.0,0.0021]
[1757293368477,0.37066538,110800.0,110790.0,0.0021]
[1757293368688,0.37066538,110800.0,110790.0,0.1826217]
[1757293369419,0.37066538,110800.0,110790.0,0.00504]
[1757293370273,0.37166538,110800.0,110790.0,0.00504]
[1757293370738,0.37066538,110800.0,110790.0,0.0021]
[1757293370916,0.37066538,110800.0,110790.0,0.00521]
[1757293371119,0.37066538,110800.0,110790.0,0.1857317]
[1757293371348,0.001,110800.0,110790.0,0.1867317]
[1757293371547,0.18150541,110800.0,110790.0,0.00621]
[1757293371876,0.37166538,110800.0,110790.0,0.15462]
[1757293372291,0.37683538,110800.0,110790.0,0.0031]
[1757293372690,0.37683538,110800.0,110790.0,0.00535652]
[1757293375850,0.37166538,110800.0,110790.0,0.18898822]
[1757293376053,0.18150541,110800.0,110790.0,0.1867317]
[1757293376437,0.37166538,110800.0,110790.0,0.0031]
[1757293376713,0.37166538,110800.0,110790.0,0.00535652]
[1757293376853,0.37166538,110800.0,110790.0,0.00846652]
[1757293377511,0.37166538,110800.0,110790.0,0.18898822]
[1757293377742,0.18150541,110800.0,110790.0,0.1867317]
[1757293380517,0.001,110800.0,110790.0,0.1867317]
[1757293380747,0.001,110800.0,110790.0,0.46880766]
[1757293381210,0.001,110800.0,110790.0,0.49590701]
[1757293383833,0.001,110800.0,110790.0,0.83590701]
[1757293386686,0.001,110800.0,110790.0,0.64574704]
[1757293386907,0.19115997,110800.0,110790.0,0.64574704]
[1757293387127,0.37166538,110800.0,110790.0,0.79750704]
[1757293387314,0.37166538,110800.0,110790.0,0.64574704]
[1757293387566,0.18150541,110800.0,110790.0,0.79750704]
[1757293387778,0.18150541,110800.0,110790.0,0.64574704]
[1757293388001,0.18150541,110800.0,110790.0,0.79750704]
[1757293388219,0.001,110800.0,110790.0,0.98766701]
[1757293388935,0.001,110800.0,110790.0,1.2324758]
[1757293389185,1e-08,110810.0,110800.0,0.8316042]
[1757293389407,1e-08,110810.0,110800.0,1.11019533]
[1757293389635,1e-08,110810.0,110800.0,1.03162019]
[1757293389869,0.00035928,110850.0,110840.0,0.18044027]
[1757293390086,0.07061212,110860.0,110850.0,0.18042399]
[1757293390305,0.07065858,110860.0,110850.0,0.61429998]
[1757293390536,0.01,110880.0,110870.0,0.52039144]
[1757293390754,0.01004676,110880.0,110870.0,1.27362619]
[1757293390976,0.01004676,110880.0,110870.0,1.08350622]
[1757293391475,1e-08,110880.0,110870.0,1.59835626]
[1757293391708,1e-08,110880.0,110870.0,1.06603632]
[1757293391926,1e-08,110880.0,110870.0,1.99839626]
[1757293392190,0.18932703,110920.0,110870.0,1.99839626]
[1757293392191,0.45146705,110930.0,110920.0,0.18031013]
[1757293392194,0.0104,110930.0,110920.0,0.18031013]
[1757293392400,0.0104,110930.0,110920.0,0.42937612]
[1757293392621,0.0104,110930.0,110920.0,0.73291315]
[1757293393057,0.00078961,110940.0,110930.0,0.50476972]
[1757293393275,0.0004,110940.0,110930.0,0.59979571]
[1757293393489,0.00086794,110940.0,110930.0,0.60175571]
[1757293393724,0.00086794,110940.0,110930.0,0.63546571]
[1757293393956,1e-08,110940.0,110930.0,1.42758571]
[1757293394174,1e-08,110940.0,110930.0,1.22546571]
[1757293394392,1e-08,110940.0,110930.0,0.61727986]
[1757293394610,1e-08,110940.0,110930.0,0.42947986]
[1757293394826,0.00100001,110940.0,110930.0,0.43647986]
[1757293395061,0.00100001,110940.0,110930.0,0.28427986]
[1757293395276,0.37783494,110940.0,110930.0,0.00196]
[1757293395491,0.19755732,110940.0,110930.0,0.18225387]
[1757293395702,0.37783494,110940.0,110930.0,0.18225387]
[1757293395913,0.37783494,110940.0,110930.0,0.00196]
[1757293396122,0.18027763,110940.0,110930.0,0.00196]
[1757293396566,0.38400494,110940.0,110920.0,0.02706318]
[1757293396778,0.37785118,110930.0,110910.0,0.34149408]
[1757293396986,0.18029387,110930.0,110920.0,0.00196]
[1757293397416,0.18029387,110930.0,110920.0,0.18227013]
[1757293397657,0.37883494,110940.0,110920.0,0.18538013]
[1757293397872,0.53003494,110940.0,110920.0,0.18538013]
[1757293398088,0.49179453,110940.0,110930.0,0.003]
[1757293398273,0.49179453,110940.0,110930.0,0.00196]
[1757293398520,0.18029387,110930.0,110910.0,0.43652007]
[1757293399009,0.37785118,110930.0,110910.0,0.43652007]
[1757293399236,0.37785118,110930.0,110920.0,0.00196]
[1757293399464,0.37785118,110930.0,110920.0,0.18227013]
[1757293399689,0.001,110930.0,110920.0,0.18738013]
[1757293399902,0.53904881,110940.0,110920.0,0.18538013]
[1757293400327,0.18229387,110930.0,110920.0,0.00507]
[1757293400514,0.38313118,110930.0,110910.0,0.43341007]
[1757293400771,0.37785118,110930.0,110920.0,0.18242013]
[1757293400977,0.18129387,110930.0,110920.0,0.18542013]
[1757293401190,0.18129387,110930.0,110920.0,0.18847013]
[1757293401604,0.001,110930.0,110920.0,0.18847013]
[1757293401823,0.001,110930.0,110920.0,0.47794343]
[1757293402040,0.001,110930.0,110920.0,0.81794343]
[1757293402253,0.001,110930.0,110920.0,0.84501071]
[1757293402462,0.001,110930.0,110920.0,0.81794343]
[1757293403367,0.001,110930.0,110920.0,0.62038612]
[1757293403579,0.001,110930.0,110920.0,0.81794343]
[1757293403800,0.001,110930.0,110920.0,0.62038612]
[1757293404094,0.001,110930.0,110920.0,0.43254612]
[1757293405376,0.20062731,110930.0,110920.0,0.00511]
[1757293405593,0.38413118,110930.0,110920.0,0.003]
[1757293406026,0.33345387,110930.0,110920.0,0.18847013]
[1757293406667,0.18129387,110930.0,110920.0,0.18847013]
[1757293406937,0.001,110930.0,110920.0,0.18847013]
[1757293407600,0.001,110930.0,110920.0,0.28038612]
[1757293407833,0.001,110930.0,110920.0,0.63006343]
[1757293408046,0.001,110930.0,110920.0,0.43250612]
[1757293409776,0.38413118,110930.0,110920.0,0.003]
[1757293409977,0.53629118,110930.0,110920.0,0.003]
[1757293410751,0.53308118,110930.0,110920.0,0.003]
[1757293411299,0.53105118,110930.0,110920.0,0.00511]
[1757293411715,0.53312118,110930.0,110920.0,0.00511]
[1757293412298,0.53312118,110930.0,110920.0,0.18542013]
[1757293412299,0.53097118,110930.0,110920.0,0.18542013]
[1757293412890,0.001,110930.0,110920.0,0.18847013]
[1757293413099,0.001,110930.0,110920.0,0.34059013]
[1757293413310,0.001,110930.0,110920.0,0.43250612]
[1757293413693,0.18129387,110930.0,110920.0,0.42945612]
[1757293413906,0.001,110930.0,110920.0,0.42945612]
[1757293414078,0.001,110930.0,110920.0,0.43250612]
[1757293415253,0.001,110930.0,110920.0,0.84174612]
[1757293415475,0.001,110930.0,110920.0,1.03930343]
[1757293417210,0.001,110930.0,110920.0,0.84174612]
[1757293417397,0.001,110930.0,110920.0,1.03930343]
[1757293419509,0.001,110930.0,110920.0,1.06024225]
[1757293419719,0.001,110930.0,110920.0,1.11024225]
[1757293420353,0.19775814,110970.0,110960.0,0.18024513]
[1757293420563,0.19775814,110970.0,110960.0,0.18248141]
[1757293420967,0.19982814,110970.0,110960.0,0.00223628]
[1757293421188,0.40024577,110970.0,110960.0,0.00012628]
[1757293421612,0.41324577,110970.0,110960.0,0.00212628]
[1757293423544,0.50516176,110970.0,110960.0,0.00212628]
[1757293423765,0.21247846,110970.0,110960.0,0.00212628]
[1757293423994,0.40796577,110970.0,110960.0,0.00423628]
[1757293424480,0.40796577,110970.0,110960.0,0.18673447]
[1757293424701,0.40796577,110970.0,110960.0,0.00423628]
[1757293425599,0.21040846,110970.0,110960.0,0.00423628]
[1757293425874,0.40796577,110970.0,110960.0,0.00423628]
[1757293426098,0.41324577,110970.0,110960.0,0.00212628]
[1757293426324,0.55996577,110970.0,110960.0,0.00648934]
[1757293427012,0.56203577,110970.0,110960.0,0.00648934]
[1757293427229,0.56203577,110970.0,110960.0,0.00423628]
[1757293429854,0.56524577,110970.0,110960.0,0.00212628]
[1757293430104,1.19471907,110970.0,110960.0,0.00212628]
[1757293430345,1.2603215,110970.0,110960.0,0.00212628]
[1757293430573,1.28451969,110970.0,110960.0,0.00212628]
[1757293430799,0.57817089,110970.0,110960.0,0.00212628]
[1757293431029,0.924386,110970.0,110960.0,0.00212628]
[1757293431933,0.9327897,110970.0,110960.0,0.00212628]
[1757293433723,1.02470569,110970.0,110960.0,0.00212628]
[1757293438876,1.28104182,110970.0,110960.0,0.00212628]
[1757293439335,1.30524001,110970.0,110960.0,0.00212628]
[1757293439471,1.1076827,110970.0,110960.0,0.00212628]
[1757293440492,1.31374001,110970.0,110960.0,0.00212628]
[1757293442170,1.1161427,110970.0,110960.0,0.00212628]
[1757293442469,1.31370001,110970.0,110960.0,0.00212628]
[1757293443128,1.1161427,110970.0,110960.0,0.00212628]
[1757293443571,0.91858539,110970.0,110960.0,0.00212628]
[1757293443795,0.18031013,110920.0,110910.0,0.259954]
[1757293444013,0.18031013,110920.0,110910.0,0.35382999]
[1757293444234,0.53336573,110930.0,110910.0,0.35382999]
[1757293444446,0.18031013,110920.0,110910.0,0.261914]
[1757293444672,0.18239013,110920.0,110910.0,0.261914]
[1757293444888,0.18031013,110920.0,110910.0,0.19130188]
[1757293445111,0.18045037,110920.0,110910.0,0.19130188]
[1757293445482,0.18145037,110920.0,110910.0,0.19330188]
[1757293446285,0.18145037,110920.0,110910.0,0.00396]
[1757293446500,0.18353037,110920.0,110910.0,0.00396]
[1757293446700,0.18145037,110920.0,110910.0,0.18428639]
[1757293448533,0.18145037,110920.0,110910.0,0.00396]
[1757293448728,0.18145037,110920.0,110910.0,0.18428639]
[1757293449325,0.18353037,110920.0,110910.0,0.00396]
[1757293449531,0.18353037,110920.0,110910.0,0.18428639]
[1757293451269,0.18145037,110920.0,110910.0,0.18428639]
[1757293451477,0.18145037,110920.0,110910.0,0.18724639]
[1757293452178,0.18145037,110920.0,110910.0,0.18428639]
[1757293452405,0.18145037,110920.0,110910.0,0.18724639]
[1757293453246,0.18145037,110920.0,110910.0,0.18428639]
[1757293456626,0.18353037,110920.0,110910.0,0.18428639]
[1757293457527,0.18145037,110920.0,110910.0,0.18428639]
[1757293458551,0.37122531,110920.0,110910.0,0.18428639]
[1757293459230,0.37330531,110920.0,110910.0,0.00396]
[1757293459448,0.37624531,110920.0,110910.0,0.002]
[1757293460330,0.39805854,110920.0,110910.0,0.002]
[1757293461438,0.18032639,110910.0,110900.0,0.18034206]
[1757293461657,0.52234133,110910.0,110900.0,0.18242206]
[1757293462097,0.52234133,110910.0,110900.0,0.18548206]
[1757293463430,0.33356639,110910.0,110900.0,0.18748265]
[1757293463677,0.52334133,110910.0,110900.0,0.18748265]
[1757293463901,0.52334133,110910.0,110900.0,0.18442265]
[1757293464146,0.52334133,110910.0,110900.0,0.00408]
[1757293464348,0.33356639,110910.0,110900.0,0.00408]
[1757293464492,0.52842133,110910.0,110900.0,0.00408]
[1757293464719,0.52842133,110910.0,110900.0,0.002]
[1757293464967,0.52842133,110910.0,110900.0,0.18234265]
[1757293465215,0.52842133,110910.0,110900.0,0.18442265]
[1757293465647,0.52545133,110910.0,110900.0,0.18442265]
[1757293465822,0.52545133,110910.0,110900.0,0.00408]
[1757293466768,0.33567639,110910.0,110900.0,0.00408]
[1757293467000,0.52842133,110910.0,110900.0,0.00408]
[1757293467229,0.52334133,110910.0,110900.0,0.00408]
[1757293467412,0.52545133,110910.0,110900.0,0.00408]
[1757293467902,0.52842133,110910.0,110900.0,0.00408]
[1757293468327,0.52334133,110910.0,110900.0,0.00408]
[1757293468733,0.52545133,110910.0,110900.0,0.18442265]
[1757293468946,0.52842133,110910.0,110900.0,0.18442265]
[1757293469371,0.52545133,110910.0,110900.0,0.18442265]
[1757293469778,0.52545133,110910.0,110900.0,0.00408]
[1757293470219,0.52842133,110910.0,110900.0,0.002]
[1757293470557,0.52334133,110910.0,110900.0,0.00408]
[1757293471667,0.52842133,110910.0,110900.0,0.002]
[1757293473027,0.37618133,110910.0,110900.0,0.002]
[1757293473246,0.52314133,110910.0,110900.0,0.00408]
[1757293473462,0.52822133,110910.0,110900.0,0.00408]
[1757293473958,0.52822133,110910.0,110900.0,0.002]
[1757293476536,0.80991226,110910.0,110900.0,0.002]
[1757293477937,0.85011665,110910.0,110900.0,0.002]
[1757293479763,0.18035891,110890.0,110880.0,0.18939347]
[1757293479961,0.33223891,110890.0,110880.0,0.18939347]
[1757293480162,0.33223891,110890.0,110880.0,0.19147347]
[1757293480380,0.33223891,110890.0,110880.0,0.19453347]
[1757293481447,0.33434891,110890.0,110880.0,0.19147347]
[1757293481643,0.52709385,110890.0,110880.0,0.18245518]
[1757293481843,0.33223891,110890.0,110880.0,0.18245518]
[1757293482201,0.33223891,110890.0,110880.0,0.18551518]
[1757293482676,0.33223891,110890.0,110880.0,0.18245518]
[1757293483242,0.18035891,110890.0,110880.0,0.18245518]
[1757293483443,0.33223891,110890.0,110880.0,0.18245518]
[1757293484403,0.18135891,110890.0,110880.0,0.18445518]
[1757293484613,0.33323891,110890.0,110880.0,0.18445518]
[1757293485257,0.11755629,110890.0,110880.0,0.18445518]
[1757293485487,0.2979152,110890.0,110880.0,0.18445518]
[1757293485692,0.48980014,110890.0,110880.0,0.18237518]
[1757293485899,0.49277014,110890.0,110880.0,0.18237518]
[1757293486120,0.48769014,110890.0,110880.0,0.18445518]
[1757293487899,0.48980014,110890.0,110880.0,0.18445518]
[1757293491916,0.3030452,110890.0,110880.0,0.18445518]
[1757293492114,0.49282014,110890.0,110880.0,0.18445518]
[1757293493251,0.48980014,110890.0,110880.0,0.18445518]
[1757293494862,0.30944123,110890.0,110880.0,0.18445518]
[1757293495070,0.48769014,110890.0,110880.0,0.18445518]
[1757293495520,0.48982014,110890.0,110880.0,0.18445518]
[1757293496179,0.49284014,110890.0,110880.0,0.18445518]
[1757293496760,0.3030652,110890.0,110880.0,0.18445518]
[1757293496938,0.48982014,110890.0,110880.0,0.18445518]
[1757293497141,0.3000452,110890.0,110880.0,0.18445518]
[1757293497471,0.48982014,110890.0,110880.0,0.18445518]
[1757293497607,0.19190494,110890.0,110880.0,0.18445518]
[1757293497833,0.18033409,110910.0,110900.0,0.18034215]
[1757293498081,0.2715436,110920.0,110910.0,0.18032639]
[1757293498303,0.54580854,110920.0,110900.0,0.18034215]
[1757293498529,0.54882854,110920.0,110900.0,0.18034215]
[1757293498942,0.54882854,110920.0,110890.0,0.34101685]
[1757293498943,0.37312133,110910.0,110890.0,0.34101685]
[1757293499148,0.37224759,110900.0,110890.0,0.34308685]
[1757293499361,0.52690759,110900.0,110890.0,0.19144685]
[1757293499567,0.34141494,110900.0,110890.0,0.19144685]
[1757293499974,0.15164,110900.0,110890.0,0.19439685]
[1757293500196,0.33411265,110900.0,110890.0,0.19144685]
[1757293500521,0.33813265,110900.0,110890.0,0.00307]
[1757293500722,0.52790759,110900.0,110890.0,0.001]
[1757293501562,0.52488759,110900.0,110890.0,0.00307]
[1757293502232,0.52275759,110900.0,110890.0,0.00307]
[1757293502444,0.52790759,110900.0,110890.0,0.001]
[1757293502837,0.52786759,110900.0,110890.0,0.001]
[1757293504837,0.61978358,110900.0,110890.0,0.001]
[1757293505266,0.95978358,110900.0,110890.0,0.001]
[1757293505824,0.99590358,110900.0,110890.0,0.001]
[1757293506906,1.0168424,110900.0,110890.0,0.001]
[1757293507136,0.18039144,110870.0,110860.0,0.00902038]